{"text_format":"1","workbook":"xlsx","n_sheets":13,"sheets":["Template","January","February","March","April","May","June","July","August","September","October","November","December"],"not_rendered":{"charts":0,"images":2,"macros":1,"external_links":0,"defined_names":26,"comments":0,"pivot_tables":0},"unopened":[],"bounds":{"document_bytes":16777216,"sheet_cells":100000,"rows_first":2000,"rows_last":500,"rows_between":2000,"halvings":0,"cell_chars":16384,"cell_head_chars":4096},"cells_cut":0,"cells_raw":0,"read":"whole","date_system":"1900"}

{"sheet":"Template","index":0,"n_rows":6,"n_cols":13,"rows_kept":6,"cut":false,"hidden":false,"merged":[[0,0,0,7]]}
["Manual Tracking Template"]
[]
[null,null,null,null,null,null,null,null,null,null,"Gross Referral Revenue","Total Referral Expense","Net Referral Revenue"]
["Referring Client Name","Referred Client Name","Average New Client Value:","New Client Sign-up Date:","Referring Client Contacted?","Incentive Paid to Referring Client?","Inentive Paid to Referred Client?","Total Amount Paid for Incentives?","Total Referrals for Client",null,{"$f":"SUM(C5:C1000)","v":1700},{"$f":"SUM(H5:H1000)","v":100},{"$f":"SUM(K4-L4)","v":1600}]
["Example: John Smith","Sally Sams",1700,"2021-02-02","Yes","Yes","Yes",100,3]
[" "," "," "," "," "," "," "," "," "]

{"sheet":"January","index":1,"n_rows":6,"n_cols":13,"rows_kept":6,"cut":false,"hidden":false,"merged":[[0,0,0,7]]}
["Manual Tracking Template"]
[]
[null,null,null,null,null,null,null,null,null,null,"Gross Referral Revenue","Total Referral Expense","Net Referral Revenue"]
["Referring Client Name","Referred Client Name","Average New Client Value:","New Client Sign-up Date:","Referring Client Contacted?","Incentive Paid to Referring Client?","Inentive Paid to Referred Client?","Amount Paid to Referring Client?","Total Referrals for Client",null,{"$f":"SUM(C5:C1000)","v":1700},{"$f":"SUM(H5:H1000)","v":100},{"$f":"SUM(K4-L4)","v":1600}]
["Example: John Smith","Sally Sams",1700,"2021-02-02","Yes","Yes","Yes",100,3]
[" "," "," "," "," "]

{"sheet":"February","index":2,"n_rows":6,"n_cols":13,"rows_kept":6,"cut":false,"hidden":false,"merged":[[0,0,0,7]]}
["Manual Tracking Template"]
[]
[null,null,null,null,null,null,null,null,null,null,"Gross Referral Revenue","Total Referral Expense","Net Referral Revenue"]
["Referring Client Name","Referred Client Name","Average New Client Value:","New Client Sign-up Date:","Referring Client Contacted?","Incentive Paid to Referring Client?","Inentive Paid to Referred Client?","Amount Paid to Referring Client?","Total Referrals for Client",null,{"$f":"SUM(C5:C1000)","v":1700},{"$f":"SUM(H5:H1000)","v":100},{"$f":"SUM(K4-L4)","v":1600}]
["Example: John Smith","Sally Sams",1700,"2021-02-02","Yes","Yes","Yes",100,3]
[" "," "," "," "," "]

{"sheet":"March","index":3,"n_rows":6,"n_cols":13,"rows_kept":6,"cut":false,"hidden":false,"merged":[[0,0,0,7]]}
["Manual Tracking Template"]
[]
[null,null,null,null,null,null,null,null,null,null,"Gross Referral Revenue","Total Referral Expense","Net Referral Revenue"]
["Referring Client Name","Referred Client Name","Average New Client Value:","New Client Sign-up Date:","Referring Client Contacted?","Incentive Paid to Referring Client?","Inentive Paid to Referred Client?","Amount Paid to Referring Client?","Total Referrals for Client",null,{"$f":"SUM(C5:C1000)","v":1700},{"$f":"SUM(H5:H1000)","v":100},{"$f":"SUM(K4-L4)","v":1600}]
["Example: John Smith","Sally Sams",1700,"2021-02-02","Yes","Yes","Yes",100,3]
[" "," "," "," "," "]

{"sheet":"April","index":4,"n_rows":6,"n_cols":13,"rows_kept":6,"cut":false,"hidden":false,"merged":[[0,0,0,7]]}
["Manual Tracking Template"]
[]
[null,null,null,null,null,null,null,null,null,null,"Gross Referral Revenue","Total Referral Expense","Net Referral Revenue"]
["Referring Client Name","Referred Client Name","Average New Client Value:","New Client Sign-up Date:","Referring Client Contacted?","Incentive Paid to Referring Client?","Inentive Paid to Referred Client?","Amount Paid to Referring Client?","Total Referrals for Client",null,{"$f":"SUM(C5:C1000)","v":1700},{"$f":"SUM(H5:H1000)","v":100},{"$f":"SUM(K4-L4)","v":1600}]
["Example: John Smith","Sally Sams",1700,"2021-02-02","Yes","Yes","Yes",100,3]
[" "," "," "," "," "]

{"sheet":"May","index":5,"n_rows":6,"n_cols":13,"rows_kept":6,"cut":false,"hidden":false,"merged":[[0,0,0,7]]}
["Manual Tracking Template"]
[]
[null,null,null,null,null,null,null,null,null,null,"Gross Referral Revenue","Total Referral Expense","Net Referral Revenue"]
["Referring Client Name","Referred Client Name","Average New Client Value:","New Client Sign-up Date:","Referring Client Contacted?","Incentive Paid to Referring Client?","Inentive Paid to Referred Client?","Amount Paid to Referring Client?","Total Referrals for Client",null,{"$f":"SUM(C5:C1000)","v":1700},{"$f":"SUM(H5:H1000)","v":100},{"$f":"SUM(K4-L4)","v":1600}]
["Example: John Smith","Sally Sams",1700,"2021-02-02","Yes","Yes","Yes",100,3]
[" "," "," "," "," "]

{"sheet":"June","index":6,"n_rows":6,"n_cols":13,"rows_kept":6,"cut":false,"hidden":false,"merged":[[0,0,0,7]]}
["Manual Tracking Template"]
[]
[null,null,null,null,null,null,null,null,null,null,"Gross Referral Revenue","Total Referral Expense","Net Referral Revenue"]
["Referring Client Name","Referred Client Name","Average New Client Value:","New Client Sign-up Date:","Referring Client Contacted?","Incentive Paid to Referring Client?","Inentive Paid to Referred Client?","Amount Paid to Referring Client?","Total Referrals for Client",null,{"$f":"SUM(C5:C1000)","v":1700},{"$f":"SUM(H5:H1000)","v":100},{"$f":"SUM(K4-L4)","v":1600}]
["Example: John Smith","Sally Sams",1700,"2021-02-02","Yes","Yes","Yes",100,3]
[" "," "," "," "," "]

{"sheet":"July","index":7,"n_rows":6,"n_cols":13,"rows_kept":6,"cut":false,"hidden":false,"merged":[[0,0,0,7]]}
["Manual Tracking Template"]
[]
[null,null,null,null,null,null,null,null,null,null,"Gross Referral Revenue","Total Referral Expense","Net Referral Revenue"]
["Referring Client Name","Referred Client Name","Average New Client Value:","New Client Sign-up Date:","Referring Client Contacted?","Incentive Paid to Referring Client?","Inentive Paid to Referred Client?","Amount Paid to Referring Client?","Total Referrals for Client",null,{"$f":"SUM(C5:C1000)","v":1700},{"$f":"SUM(H5:H1000)","v":100},{"$f":"SUM(K4-L4)","v":1600}]
["Example: John Smith","Sally Sams",1700,"2021-02-02","Yes","Yes","Yes",100,3]
[" "," "," "," "," "]

{"sheet":"August","index":8,"n_rows":6,"n_cols":13,"rows_kept":6,"cut":false,"hidden":false,"merged":[[0,0,0,7]]}
["Manual Tracking Template"]
[]
[null,null,null,null,null,null,null,null,null,null,"Gross Referral Revenue","Total Referral Expense","Net Referral Revenue"]
["Referring Client Name","Referred Client Name","Average New Client Value:","New Client Sign-up Date:","Referring Client Contacted?","Incentive Paid to Referring Client?","Inentive Paid to Referred Client?","Amount Paid to Referring Client?","Total Referrals for Client",null,{"$f":"SUM(C5:C1000)","v":1700},{"$f":"SUM(H5:H1000)","v":100},{"$f":"SUM(K4-L4)","v":1600}]
["Example: John Smith","Sally Sams",1700,"2021-02-02","Yes","Yes","Yes",100,3]
[" "," "," "," "," "]

{"sheet":"September","index":9,"n_rows":6,"n_cols":13,"rows_kept":6,"cut":false,"hidden":false,"merged":[[0,0,0,7]]}
["Manual Tracking Template"]
[]
[null,null,null,null,null,null,null,null,null,null,"Gross Referral Revenue","Total Referral Expense","Net Referral Revenue"]
["Referring Client Name","Referred Client Name","Average New Client Value:","New Client Sign-up Date:","Referring Client Contacted?","Incentive Paid to Referring Client?","Inentive Paid to Referred Client?","Amount Paid to Referring Client?","Total Referrals for Client",null,{"$f":"SUM(C5:C1000)","v":1700},{"$f":"SUM(H5:H1000)","v":100},{"$f":"SUM(K4-L4)","v":1600}]
["Example: John Smith","Sally Sams",1700,"2021-02-02","Yes","Yes","Yes",100,3]
[" "," "," "," "," "]

{"sheet":"October","index":10,"n_rows":6,"n_cols":13,"rows_kept":6,"cut":false,"hidden":false,"merged":[[0,0,0,7]]}
["Manual Tracking Template"]
[]
[null,null,null,null,null,null,null,null,null,null,"Gross Referral Revenue","Total Referral Expense","Net Referral Revenue"]
["Referring Client Name","Referred Client Name","Average New Client Value:","New Client Sign-up Date:","Referring Client Contacted?","Incentive Paid to Referring Client?","Inentive Paid to Referred Client?","Amount Paid to Referring Client?","Total Referrals for Client",null,{"$f":"SUM(C5:C1000)","v":1700},{"$f":"SUM(H5:H1000)","v":100},{"$f":"SUM(K4-L4)","v":1600}]
["Example: John Smith","Sally Sams",1700,"2021-02-02","Yes","Yes","Yes",100,3]
[" "," "," "," "," "]

{"sheet":"November","index":11,"n_rows":6,"n_cols":13,"rows_kept":6,"cut":false,"hidden":false,"merged":[[0,0,0,7]]}
["Manual Tracking Template"]
[]
[null,null,null,null,null,null,null,null,null,null,"Gross Referral Revenue","Total Referral Expense","Net Referral Revenue"]
["Referring Client Name","Referred Client Name","Average New Client Value:","New Client Sign-up Date:","Referring Client Contacted?","Incentive Paid to Referring Client?","Inentive Paid to Referred Client?","Amount Paid to Referring Client?","Total Referrals for Client",null,{"$f":"SUM(C5:C1000)","v":1700},{"$f":"SUM(H5:H1000)","v":100},{"$f":"SUM(K4-L4)","v":1600}]
["Example: John Smith","Sally Sams",1700,"2021-02-02","Yes","Yes","Yes",100,3]
[" "," "," "," "," "]

{"sheet":"December","index":12,"n_rows":6,"n_cols":13,"rows_kept":6,"cut":false,"hidden":false,"merged":[[0,0,0,7]]}
["Manual Tracking Template"]
[]
[null,null,null,null,null,null,null,null,null,null,"Gross Referral Revenue","Total Referral Expense","Net Referral Revenue"]
["Referring Client Name","Referred Client Name","Average New Client Value:","New Client Sign-up Date:","Referring Client Contacted?","Incentive Paid to Referring Client?","Inentive Paid to Referred Client?","Amount Paid to Referring Client?","Total Referrals for Client",null,{"$f":"SUM(C5:C1000)","v":1700},{"$f":"SUM(H5:H1000)","v":100},{"$f":"SUM(K4-L4)","v":1600}]
["Example: John Smith","Sally Sams",1700,"2021-02-02","Yes","Yes","Yes",100,3]
[" "," "," "," "," "]